bitfinex/quotes_SOLUSD_20240727
["timestamp","ask_amount","ask_price","bid_price","bid_amount"]
[1722097843521,12.89,183.28,183.21,57.89]
[1722097844259,12.89,183.27,183.21,45.0]
[1722097845549,12.89,183.28,183.21,57.89]
[1722097847420,15.1056,183.33,183.22,12.89]
[1722097847642,15.1056,183.33,183.21,45.0]
[1722097847643,12.89,183.31,183.23,57.89]
[1722097847852,12.89,183.31,183.24,45.0]
[1722097848750,15.1056,183.33,183.24,45.0]
[1722097848751,21.5499,183.37,183.24,45.0]
[1722097848936,12.89,183.34,183.26,12.89]
[1722097849135,12.89,183.34,183.28,12.89]
[1722097849338,12.89,183.34,183.29,45.0]
[1722097849543,12.89,183.33,183.29,45.0]
[1722097849750,12.89,183.34,183.29,45.0]
[1722097849935,12.89,183.34,183.28,45.0]
[1722097851048,5.4538,183.36,183.28,45.0]
[1722097851250,12.89,183.33,183.27,45.0]
[1722097853258,12.89,183.32,183.27,45.0]
[1722097853550,12.89,183.33,183.26,45.0]
[1722097853755,12.89,183.34,183.27,15.5804]
[1722097853956,12.89,183.34,183.28,45.0]
[1722097854327,12.89,183.34,183.22,22.4581]
[1722097854328,12.89,183.29,183.21,15.5804]
[1722097854532,12.89,183.28,183.21,28.4704]
[1722097854750,12.89,183.27,183.21,15.5804]
[1722097854928,12.89,183.27,183.18,6.0481]
[1722097855249,12.89,183.27,183.2,12.89]
[1722097856333,11.5722,183.33,183.22,12.89]
[1722097856654,12.89,183.3,183.23,57.89]
[1722097856828,12.89,183.3,183.24,45.0]
[1722097857437,6.1176,183.33,183.24,57.89]
[1722097857639,12.89,183.31,183.24,57.89]
[1722097857934,6.1176,183.33,183.25,12.89]
[1722097858238,10.39882197,183.42,183.24,45.0]
[1722097858239,6.1176,183.37,183.27,12.89]
[1722097858440,12.89,183.34,183.28,12.89]
[1722097858752,12.89,183.35,183.29,45.0]
[1722097858958,12.89,183.34,183.29,45.0]
[1722097859560,6.1176,183.37,183.29,45.0]
[1722097859749,12.89,183.34,183.28,45.0]
[1722097861260,6.1176,183.37,183.28,45.0]
[1722097861557,6.1176,183.41,183.29,0.34]
[1722097865146,23.88454217,183.42,183.29,0.34]
[1722097866566,1.36323813,183.41,183.29,0.34]
[1722097866765,23.88454217,183.42,183.29,0.34]
[1722097871067,1.36324477,183.41,183.29,0.34]
[1722097871269,23.88454217,183.42,183.29,0.34]
[1722097872370,1.36313995,183.41,183.29,0.34]
[1722097872571,23.8816652,183.42,183.29,0.34]
[1722097873058,15.3268,183.42,183.29,0.34]
[1722097874165,8.55478981,183.43,183.29,0.34]
[1722097874357,8.55478981,183.43,183.3,58.4189]
[1722097874670,8.55478981,183.43,183.31,61.75]
[1722097875049,8.55478981,183.43,183.33,42.17]
[1722097875246,0.7359886,183.48,183.34,61.75]
[1722097875980,6.1861886,183.48,183.34,45.34]
[1722097876281,5.4506,183.47,183.34,45.34]
[1722097876571,5.4506,183.47,183.34,0.34]
[1722097876966,6.1861886,183.48,183.34,0.34]
[1722097877172,0.7359886,183.48,183.34,0.34]
[1722097877368,20.7359886,183.48,183.34,0.34]
[1722097877972,26.1861886,183.48,183.34,0.34]
[1722097878271,20.7359886,183.48,183.34,0.34]
[1722097878879,26.1861886,183.48,183.34,0.34]
[1722097879456,0.7359886,183.48,183.34,0.34]
[1722097879660,5.4504,183.47,183.34,0.34]
[1722097879969,5.4519,183.43,183.32,22.297]
[1722097880173,5.452,183.42,183.32,22.297]
[1722097880407,11.7061,183.44,183.32,22.297]
[1722097880671,25.4518,183.43,183.32,22.297]
[1722097881052,12.87,183.4,183.33,12.87]
[1722097881255,18.3228,183.39,183.27,18.11340709]
[1722097881455,12.87,183.36,183.27,16.2489]
[1722097881678,12.87,183.36,183.28,12.87]
[1722097881851,12.87,183.36,183.29,12.87]
[1722097882054,12.87,183.36,183.3,12.87]
[1722097882262,12.87,183.37,183.3,12.87]
[1722097882777,12.87,183.37,183.27,16.2489]
[1722097882977,12.87,183.37,183.3,12.87]
[1722097883172,11.7061,183.44,183.28,0.34]
[1722097883367,12.87,183.4,183.33,12.87]
[1722097883677,12.87,183.41,183.33,12.87]
[1722097883983,12.87,183.41,183.34,45.0]
[1722097885479,12.87,183.4,183.34,45.0]
[1722097887377,12.87,183.39,183.34,45.0]
[1722097887580,12.87,183.39,183.33,45.0]
[1722097888687,11.7061,183.44,183.33,57.87]
[1722097888862,12.87,183.41,183.33,57.87]
[1722097890991,12.87,183.4,183.33,57.87]
[1722097891976,12.87,183.41,183.34,12.87]
[1722097892182,12.87,183.41,183.35,45.0]
[1722097892382,12.87,183.42,183.35,45.0]
[1722097892580,12.87,183.41,183.35,45.0]
[1722097893281,12.87,183.4,183.35,45.0]
[1722097893485,12.87,183.4,183.34,45.0]
[1722097893682,12.87,183.39,183.34,45.0]
[1722097893880,12.87,183.39,183.33,45.0]
[1722097894389,12.87,183.4,183.33,45.0]
[1722097894583,12.87,183.4,183.33,57.87]
[1722097895085,11.7061,183.44,183.34,12.87]
[1722097895290,11.7061,183.44,183.35,45.0]
[1722097895471,6.2545,183.44,183.35,45.0]
[1722097895671,6.2545,183.44,183.36,12.87]
[1722097895868,12.87,183.43,183.37,45.0]
[1722097896264,7.3089886,183.48,183.39,12.87]
[1722097896477,12.87,183.47,183.4,57.87]
[1722097896677,12.87,183.47,183.4,12.87]
[1722097896974,12.87,183.47,183.41,45.0]
[1722097897163,12.87,183.45,183.41,45.0]
[1722097897975,12.87,183.45,183.38,12.87]
[1722097898285,0.7359886,183.48,183.35,28.3023]
[1722097898286,12.87,183.42,183.35,28.3023]
[1722097898785,12.87,183.41,183.35,15.4323]
[1722097899405,12.87,183.4,183.35,15.4323]
[1722097900198,12.87,183.41,183.35,15.4323]
[1722097900436,12.87,183.38,183.3,15.4323]
[1722097900701,12.87,183.36,183.3,15.4323]
[1722097900997,5.4526,183.4,183.3,28.3023]
[1722097900998,12.87,183.37,183.3,28.3023]
[1722097901176,5.4526,183.4,183.3,28.3023]
[1722097901177,5.4526,183.4,183.3,15.4323]
[1722097901882,5.4528,183.39,183.3,15.4323]
[1722097902689,5.4528,183.39,183.31,45.0]
[1722097902890,5.4531,183.38,183.31,45.0]
[1722097903197,5.4531,183.38,183.3,15.4323]
[1722097903409,15.8645,183.41,183.3,15.4323]
[1722097904307,5.4516,183.44,183.31,0.34]
[1722097904599,20.0,183.43,183.31,0.34]
[1722097904801,25.4518,183.43,183.31,45.34]
[1722097905388,48.1875,183.45,183.31,45.34]
[1722097905389,22.4375,183.45,183.31,45.34]
[1722097905679,22.4375,183.45,183.31,61.75]
[1722097905885,22.4375,183.45,183.32,6.0481]
[1722097906194,22.4375,183.45,183.33,45.34]
[1722097906508,6.573,183.45,183.33,45.34]
[1722097907719,5.4513,183.44,183.33,45.34]
[1722097908317,7.93615187,183.45,183.33,0.34]
[1722097908614,5.4518,183.43,183.33,0.34]
[1722097908996,1.36323042,183.42,183.33,0.34]
[1722097909308,5.4518,183.43,183.33,0.17]
[1722097909620,5.4518,183.43,183.32,6.0481]
[1722097910727,5.452,183.42,183.33,45.0]
[1722097910896,5.4524,183.41,183.33,45.0]
[1722097911221,1.3634218,183.4,183.3,15.4323]
[1722097911941,1.36353021,183.39,183.3,15.4323]
[1722097912420,1.36353021,183.39,183.31,45.0]
[1722097912611,5.4524,183.41,183.31,45.0]
[1722097912797,5.4524,183.41,183.3,15.4323]
[1722097912798,5.4525,183.4,183.3,15.4323]
[1722097913295,5.453,183.39,183.3,15.4323]
[1722097913509,5.4539,183.36,183.26,16.1594]
[1722097913820,5.4535,183.37,183.26,16.1594]
[1722097914126,5.4531,183.38,183.26,16.1594]
[1722097914330,5.6231,183.38,183.26,16.1594]
[1722097914732,5.4541,183.35,183.26,16.1594]
[1722097914934,5.4543,183.34,183.26,16.1594]
[1722097915117,1.36400237,183.33,183.26,16.1594]
[1722097915458,1.36399914,183.32,183.26,16.1594]
[1722097916209,1.3639985,183.34,183.26,16.1594]
[1722097916702,6.8182985,183.34,183.21,16.1594]
[1722097916898,26.8182985,183.34,183.21,16.1594]
[1722097917808,26.8182985,183.34,183.22,45.0]
[1722097918217,21.3639985,183.34,183.21,16.3294]
[1722097918429,20.8505,183.33,183.21,16.1594]
[1722097919742,20.8505,183.33,183.22,45.0]
[1722097920531,5.4549,183.32,183.22,45.0]
[1722097920927,6.81910614,183.32,183.22,45.0]
[1722097921231,5.4553,183.31,183.22,45.0]
[1722097921432,1.36420614,183.32,183.22,45.0]
[1722097921433,6.81920614,183.32,183.22,45.0]
[1722097922744,5.4555,183.3,183.22,45.0]
[1722097923035,25.75,183.27,183.14,260.7]
[1722097923244,25.75,183.27,183.11,16.41]
[1722097923245,21.36457343,183.26,183.13,16.1594]
[1722097923615,26.82147343,183.26,183.13,16.1594]
[1722097923917,5.4573,183.24,183.13,16.1594]
[1722097924138,15.2259,183.25,183.13,16.1594]
[1722097924444,15.0559,183.25,183.13,16.1594]
[1722097925327,20.513,183.25,183.13,16.1594]
[1722097926615,20.513,183.25,183.14,45.0]
[1722097928818,15.0559,183.25,183.14,45.0]
[1722097929324,1.36480562,183.24,183.14,45.0]
[1722097929544,1.36480326,183.23,183.14,45.0]
[1722097930422,5.4573,183.24,183.14,45.0]
[1722097930839,21.87769717,183.25,183.14,45.0]
[1722097932453,20.5129,183.25,183.14,45.0]
[1722097933145,15.0559,183.25,183.14,45.0]
[1722097935137,15.0559,183.25,183.15,0.17]
[1722097935937,23.61815427,183.25,183.15,0.17]
[1722097936634,29.07525427,183.25,183.15,0.17]
[1722097936829,23.61815427,183.25,183.1,6.0481]
[1722097937038,12.0969,183.23,183.09,33.11146067]
[1722097937237,1.3647894,183.22,183.1,20.0]
[1722097937739,12.0969,183.23,183.1,20.0]
[1722097937955,6.6393,183.23,183.1,20.0]
[1722097938447,6.6393,183.23,183.11,45.34]
[1722097938828,6.6393,183.23,183.11,61.75]
[1722097941151,15.0559,183.25,183.13,16.41]
[1722097941343,6.6393,183.27,183.15,16.41]
[1722097941551,6.6393,183.27,183.17,15.7082]
[1722097941731,6.6393,183.27,183.18,0.34]
[1722097941932,6.6393,183.27,183.18,45.34]
[1722097944832,6.6393,183.27,183.18,45.0]
[1722097946454,6.6393,183.27,183.19,0.17]
[1722097946751,6.6393,183.27,183.19,0.34]
[1722097949231,16.3085,183.3,183.19,0.34]
[1722097949858,16.3085,183.3,183.19,20.34]
[1722097950151,16.3085,183.3,183.2,45.0]
[1722097950337,16.3085,183.3,183.21,0.34]
[1722097952969,6.6393,183.31,183.21,0.34]
[1722097953635,6.6393,183.31,183.21,36.75]
[1722097953836,6.6393,183.31,183.22,45.0]
[1722097954053,6.6393,183.31,183.23,0.34]
[1722097959047,6.6393,183.31,183.25,12.88]
[1722097959243,6.6393,183.31,183.26,45.0]
[1722097960154,19.5193,183.31,183.26,45.0]
[1722097960365,19.5193,183.31,183.25,45.0]
[1722097960572,12.88,183.3,183.25,45.0]
[1722097960865,12.88,183.3,183.24,45.0]
[1722097961070,12.88,183.3,183.25,0.17]
[1722097961644,12.88,183.28,183.24,45.0]
[1722097962066,12.88,183.27,183.24,45.0]
[1722097962472,6.6393,183.31,183.24,45.0]
[1722097962645,12.88,183.28,183.24,45.0]
[1722097963174,12.88,183.26,183.18,1.87081979]
[1722097963370,12.88,183.23,183.16,16.6158]
[1722097963575,12.88,183.24,183.16,29.4958]
[1722097963773,15.1707,183.27,183.19,12.88]
[1722097964075,12.88,183.26,183.19,12.88]
[1722097964570,12.88,183.24,183.17,12.88]
[1722097964771,12.88,183.24,183.18,45.17]
[1722097964952,12.88,183.24,183.18,0.17]
[1722097965150,15.1707,183.27,183.18,0.17]
[1722097965346,15.1707,183.27,183.17,45.0]
[1722097967174,15.1707,183.27,183.18,0.34]
[1722097967471,21.81,183.31,183.18,0.34]
[1722097967672,21.81,183.31,183.18,42.54]
[1722097967856,21.81,183.31,183.2,16.6158]
[1722097968056,21.81,183.31,183.21,45.17]
[1722097968256,21.81,183.31,183.22,0.17]
[1722097969052,21.81,183.31,183.21,45.17]
[1722097969578,25.79,183.3,183.14,18.52806139]
[1722097969775,25.79,183.3,183.15,20.0]
[1722097970077,5.4558,183.29,183.14,16.6158]
[1722097970498,5.4563,183.28,183.14,16.6158]
[1722097970877,5.4559,183.29,183.14,16.6158]
[1722097971781,5.4559,183.29,183.15,45.34]
[1722097972879,21.81,183.31,183.18,25.79]
[1722097973082,21.81,183.31,183.19,45.34]
[1722097973786,21.81,183.31,183.19,45.0]
[1722097973787,25.79,183.3,183.19,45.0]
[1722097974261,31.2456,183.3,183.19,45.0]
[1722097974868,23.17439898,183.31,183.19,45.0]
[1722097974869,21.81,183.31,183.19,45.0]
[1722097975658,27.2652,183.31,183.19,45.0]
[1722097975854,5.4556,183.3,183.19,45.0]
[1722097976061,5.4555,183.3,183.19,45.0]
[1722097976261,47.6,183.31,183.19,45.0]
[1722097976485,53.0553,183.31,183.19,45.0]
[1722097976681,47.6,183.31,183.19,45.0]
[1722097978876,47.6,183.31,183.2,0.17]
[1722097979081,21.81,183.31,183.2,0.34]
[1722097980806,15.81,183.31,183.2,0.34]
[1722097981988,1.36417396,183.3,183.2,0.34]
[1722097982193,1.36417396,183.29,183.2,0.34]
[1722097982368,15.81,183.31,183.2,0.34]
[1722097983365,16.0281,183.35,183.21,16.2616]
[1722097983568,20.0,183.34,183.22,45.34]
[1722097984580,16.0281,183.35,183.22,45.34]
[1722097985073,16.0281,183.35,183.23,20.0]
[1722097985269,16.0281,183.35,183.24,45.34]
[1722097988020,5.4532,183.38,183.24,45.34]
[1722097988189,21.4808,183.4,183.24,71.13]
[1722097988383,47.15365128,183.39,183.24,45.34]
[1722097988893,5.4534,183.37,183.24,45.34]
[1722097989192,20.0,183.39,183.24,45.34]
[1722097989407,51.2428,183.39,183.24,45.34]
[1722097989607,5.4533,183.38,183.24,45.34]
[1722097989909,5.4534,183.37,183.24,45.34]
[1722097990282,5.4532,183.38,183.24,45.34]
[1722097991715,25.79,183.36,183.21,16.2616]
[1722097992093,5.454,183.35,183.21,16.2616]
[1722097992301,31.2437,183.36,183.21,16.2616]
[1722097992810,6.81810572,183.35,183.21,16.2616]
[1722097993035,5.4544,183.34,183.21,16.2616]
[1722097993321,12.89,183.27,183.21,16.2616]
[1722097993619,42.434,183.33,183.23,12.89]
[1722097993795,12.89,183.31,183.24,12.89]
[1722097993984,12.89,183.27,183.21,16.2616]
[1722097994189,14.01438617,183.32,183.21,16.2616]
[1722097994390,12.89,183.26,183.21,16.2616]
[1722097994616,12.89,183.25,183.17,18.20283481]
[1722097994789,12.89,183.24,183.17,29.1516]
[1722097995107,31.2455,183.3,183.16,16.5676]
[1722097995322,31.2455,183.3,183.16,29.4576]
[1722097995323,5.4558,183.29,183.16,29.4576]
[1722097995496,5.4558,183.29,183.16,16.5676]
[1722097996618,25.79,183.27,183.16,16.5676]
[1722097996834,25.79,183.27,183.05,4.91907053]
[1722097996835,16.42,183.26,183.12,16.5676]
[1722097997195,16.25,183.26,183.12,16.5676]
[1722097998129,16.25,183.26,183.13,0.34]
[1722097998292,16.25,183.26,183.13,45.34]
[1722097998498,16.25,183.26,183.13,0.34]
[1722097998902,21.7069,183.26,183.13,0.34]
[1722097999322,16.25,183.26,183.13,0.34]
[1722097999701,16.25,183.26,183.13,45.34]
[1722098000101,16.25,183.26,183.14,20.0]
[1722098000414,22.434,183.26,183.14,20.0]
[1722098000728,29.25551035,183.26,183.14,20.0]
[1722098001023,27.8908,183.26,183.13,20.0]
[1722098001330,22.434,183.26,183.13,20.0]
[1722098001500,22.434,183.26,183.14,45.0]
[1722098001925,22.434,183.26,183.15,0.34]
[1722098002729,23.79858492,183.26,183.15,0.34]
[1722098003522,22.434,183.26,183.15,0.34]
[1722098004430,23.79844566,183.26,183.15,0.34]
[1722098004727,22.434,183.26,183.15,0.34]
[1722098004933,16.25,183.26,183.15,20.34]
[1722098005238,16.25,183.26,183.16,45.0]
[1722098005418,6.184,183.3,183.17,20.34]
[1722098005618,6.184,183.3,183.18,45.0]
[1722098005816,6.184,183.3,183.19,0.34]
[1722098006208,5.4558,183.29,183.18,45.0]
[1722098006533,5.4558,183.29,183.12,16.5676]
[1722098006534,5.4564,183.27,183.12,16.5676]
[1722098006705,6.82100252,183.27,183.13,20.0]
[1722098006908,1.36460806,183.26,183.13,20.0]
[1722098007218,5.4564,183.27,183.13,20.0]
[1722098007523,1.3646046,183.28,183.13,20.0]
[1722098007930,1.3646046,183.28,183.14,45.34]
[1722098008132,6.8207046,183.28,183.15,20.0]
[1722098008315,6.8207046,183.28,183.16,45.0]
[1722098008530,5.4567,183.26,183.16,45.0]
[1722098008824,31.2467,183.26,183.16,45.0]
[1722098009030,16.25,183.25,183.16,45.0]
[1722098009532,1.3647409,183.24,183.12,16.5676]
[1722098010222,6.4621,183.23,183.12,16.5676]
[1722098010442,1.36487825,183.22,183.08,25.79]
[1722098010728,7.82697839,183.23,183.07,15.6989]
[1722098011138,7.82697839,183.23,183.08,20.0]
[1722098011435,7.82697839,183.23,183.07,15.6989]
[1722098011631,13.28467839,183.23,183.07,15.6989]
[1722098012033,13.28467839,183.23,183.08,45.34]
[1722098012708,13.28467839,183.23,183.09,20.0]
[1722098012931,13.28467839,183.23,183.1,45.17]
[1722098013132,41.1501,183.2,183.07,15.6989]
[1722098013314,6.4621,183.18,183.02,43.44447443]
[1722098013635,1.36530705,183.17,183.02,59.69447443]
[1722098013844,21.36530705,183.17,183.02,59.69447443]
[1722098014136,20.0,183.17,183.02,59.69447443]
[1722098014433,21.36530779,183.17,183.02,43.44447443]
[1722098014638,47.15530779,183.17,183.02,17.65447443]
[1722098015016,47.15530779,183.17,183.03,20.0432124]
[1722098015918,47.15530779,183.17,183.04,45.34]
[1722098017233,47.15530779,183.17,183.04,45.17]
[1722098017234,15.3601,183.16,183.04,45.17]
[1722098017420,1.36552214,183.15,183.03,0.0432124]
[1722098017734,1.36551904,183.14,183.03,45.2132124]
[1722098018037,10.72561904,183.16,183.03,45.2132124]
[1722098018252,1.36550704,183.15,183.03,45.2132124]
[1722098018429,1.3655044,183.14,183.03,45.2132124]
[1722098019753,1.3655044,183.14,183.03,45.0432124]
[1722098021648,17.55103406,183.16,183.03,45.0432124]
[1722098021848,6.4621,183.15,183.03,45.0432124]
[1722098022026,1.36554352,183.14,183.03,45.0432124]
[1722098022356,15.3601,183.13,183.03,45.0432124]
[1722098022525,1.36554315,183.12,183.03,45.0432124]
[1722098022926,1.36554315,183.12,183.03,0.0432124]
[1722098023120,16.72578551,183.13,183.03,0.0432124]
[1722098023429,15.3601,183.13,183.03,0.0432124]
[1722098024749,1.36568593,183.12,183.03,0.0432124]
[1722098025043,12.92,183.07,183.03,0.0432124]
[1722098026255,12.92,183.08,183.03,0.0432124]
[1722098028753,12.92,183.07,183.03,0.0432124]
[1722098030050,12.92,183.08,183.03,0.0432124]
[1722098032550,27.6605,183.03,182.87,15.8925]
[1722098032756,12.92,182.97,182.9,12.92]
[1722098032942,1.36652493,182.96,182.9,12.92]
[1722098034045,14.28652493,182.96,182.89,12.92]
[1722098034258,12.92,182.96,182.89,12.92]
[1722098034454,14.28654119,182.95,182.88,12.92]
[1722098034658,12.92,182.95,182.88,12.92]
[1722098035047,1.36668279,182.98,182.85,0.779201]
[1722098035358,22.1967,182.96,182.85,0.779201]
[1722098035576,29.02913819,182.96,182.85,0.779201]
[1722098036062,23.56353819,182.96,182.85,0.779201]
[1722098036651,22.1967,182.96,182.86,1.09338619]
[1722098037537,22.1967,182.96,182.87,0.17]
[1722098037742,22.1967,182.96,182.87,1.26334667]
[1722098037957,22.1967,182.96,182.88,0.17]
[1722098038360,22.1967,182.96,182.88,45.17]
[1722098038854,22.1967,183.01,182.89,1.26323891]
[1722098039057,22.1967,183.01,182.9,1.26304335]
[1722098039364,22.1967,183.01,182.91,0.17]
[1722098039670,22.1967,183.01,182.92,1.09293251]
[1722098039865,22.1967,183.01,182.93,1.43293281]
[1722098040370,22.1967,183.01,182.93,0.34]
[1722098040553,22.1967,183.01,182.92,45.0]
[1722098040872,22.1967,183.01,182.93,1.09302905]
[1722098041165,22.1967,183.01,182.92,45.0]
[1722098041373,22.1967,183.01,182.93,0.17]
[1722098042350,22.1967,183.01,182.93,1.26298787]
[1722098042554,15.9117,183.01,182.93,21.43298787]
[1722098042759,15.9117,183.01,182.94,45.0]
[1722098042964,15.9117,183.01,182.95,0.17]
[1722098045773,15.9117,183.01,182.94,45.0]
[1722098046349,15.9117,183.01,182.88,1.09299078]
[1722098047280,15.9117,183.01,182.87,26.96319151]
[1722098047773,15.9117,183.01,182.88,65.34]
[1722098047949,21.3759,183.01,182.88,65.34]
[1722098048149,15.9117,183.01,182.89,1.09319329]
[1722098049477,15.9117,183.01,182.9,1.09318741]
[1722098049659,15.9117,183.01,182.91,0.34]
[1722098049851,15.9117,183.01,182.92,1.09299269]
[1722098050066,15.9117,183.01,182.93,1.43295213]
[1722098050254,15.9117,183.01,182.93,1.09295213]
[1722098050459,15.9117,183.01,182.94,0.17]
[1722098050660,15.9117,183.01,182.94,1.26292421]
[1722098050864,15.9117,183.01,182.95,0.17]
[1722098051156,6.285,183.05,182.95,1.26279817]
[1722098051354,6.285,183.05,182.96,0.17]
[1722098051570,6.285,183.05,182.96,1.26266735]
[1722098051853,6.285,183.05,182.97,0.17]
[1722098052456,6.285,183.05,182.97,1.26270423]
[1722098052679,6.285,183.05,182.98,0.17]
[1722098052874,6.3866,183.11,182.98,1.26265982]
[1722098053094,22.8979,183.11,182.98,1.26265982]
[1722098053276,22.8979,183.11,182.99,0.17]
[1722098053450,24.26364593,183.11,182.99,0.17]
[1722098053776,5.4618,183.09,182.98,0.17]
[1722098053979,27.23596114,183.08,182.9,41.8939]
[1722098054154,48.7679,183.05,182.9,17.11684703]
[1722098054484,5.6332,183.04,182.9,17.11684703]
[1722098054880,5.6332,183.04,182.9,19.04864392]
[1722098055379,5.4638,183.02,182.91,0.34]
[1722098055582,5.4638,183.02,182.91,45.34]
[1722098055781,5.4638,183.02,182.91,45.0]
[1722098056358,5.4636,183.03,182.91,45.0]
[1722098056559,5.4636,183.03,182.9,16.0239]
[1722098056862,6.83028416,183.02,182.91,20.0]
[1722098057062,6.83028416,183.02,182.88,23.02439022]
[1722098057271,6.83038083,183.02,182.88,20.0]
[1722098058374,7.17070394,183.01,182.89,1.09320315]
[1722098058567,5.4638,183.03,182.9,1.09329931]
[1722098058769,0.17,183.02,182.9,1.09329931]
[1722098058972,0.17,183.03,182.9,1.09329931]
[1722098060083,6.99992414,183.04,182.9,1.09329931]
[1722098060084,0.17,183.04,182.9,1.09329931]
[1722098060284,22.8979,183.05,182.91,0.34]
[1722098060612,22.8979,183.05,182.92,1.09297411]
[1722098060790,22.8979,183.05,182.93,1.43290261]
[1722098060981,22.8979,183.05,182.93,46.43290261]
[1722098061169,22.8979,183.05,182.94,20.0]
[1722098061371,22.8979,183.05,182.95,46.09290186]
[1722098062083,5.4639,183.02,182.85,33.213101]
[1722098062264,1.36646011,183.01,182.87,1.09316809]
[1722098062662,1.36646011,183.01,182.85,0.779201]
[1722098062663,6.3866,182.96,182.85,0.779201]
[1722098062882,1.36671944,182.95,182.85,0.779201]
[1722098063690,6.3866,182.96,182.85,0.779201]
[1722098064377,6.3866,182.96,182.85,1.87267239]
[1722098064583,11.8523,182.96,182.85,1.87267239]
[1722098064785,11.8523,182.96,182.85,0.779201]
[1722098065086,1.3668573,182.95,182.85,0.779201]
[1722098065289,5.4671,182.92,182.85,0.779201]
[1722098065479,1.36708218,182.92,182.85,0.779201]
[1722098065666,16.5113,182.9,182.85,0.779201]
[1722098065869,5.468,182.88,182.85,0.779201]
[1722098066088,1.36743633,182.87,182.85,0.779201]
[1722098066386,1.36743747,182.87,182.85,0.779201]
[1722098066887,1.36743747,182.87,182.72,1.09404568]
[1722098066888,6.7266,182.86,182.72,1.09404568]
[1722098067090,1.36773339,182.85,182.7,43.47548671]
[1722098067388,16.5113,182.84,182.7,25.87]
[1722098067576,1.36779116,182.83,182.7,25.87]
[1722098067773,16.5113,182.84,182.7,26.96423293]
[1722098068107,16.5113,182.84,182.71,1.09424031]
[1722098068787,6.83730149,182.83,182.71,20.0]
[1722098068987,6.83730149,182.83,182.69,1.95135784]
[1722098069189,1.36780149,182.83,182.68,21.09424119]
[1722098069890,1.36780149,182.83,182.68,23.04720577]
[1722098070194,16.5113,182.84,182.68,23.04720577]
[1722098070690,16.5113,182.84,182.69,45.0]
[1722098070877,5.4697,182.83,182.7,21.43423936]
[1722098071076,5.4697,182.83,182.71,46.09424145]
[1722098071294,21.9805,182.84,182.72,20.17]
[1722098071492,21.9805,182.84,182.73,45.0]
[1722098071869,16.5113,182.84,182.74,0.17]
[1722098072386,16.5113,182.84,182.74,1.26412359]
[1722098073907,16.5113,182.84,182.74,1.09412359]
[1722098074080,16.5113,182.84,182.73,45.0]
[1722098074282,16.5113,182.84,182.74,1.09417391]
[1722098074587,0.96141282,182.75,182.74,1.09417391]
[1722098074784,0.96141282,182.75,182.74,1.26417391]
[1722098075583,16.5113,182.84,182.74,21.43417391]
[1722098075785,16.5113,182.84,182.75,45.34]
[1722098075998,16.5113,182.84,182.76,1.09401367]
[1722098076183,16.5113,182.84,182.77,1.09401803]
[1722098078299,16.5113,182.84,182.75,45.17]